bitfinex/quotes_BTCUSD_20251012
["timestamp","ask_amount","ask_price","bid_price","bid_amount"]
[1760227201809,2.598435,110980.0,110970.0,0.12071662]
[1760227202014,0.001,110980.0,110970.0,0.12071662]
[1760227202217,2.598435,110980.0,110970.0,0.13552065]
[1760227202416,0.05333033,111010.0,110970.0,0.1387395]
[1760227202618,2.597435,111000.0,110980.0,0.08044]
[1760227202819,0.02096786,111010.0,110990.0,0.13703841]
[1760227203026,2.597435,111000.0,110990.0,0.13703841]
[1760227203427,2.597435,111000.0,110990.0,0.06188914]
[1760227203625,2.597435,111000.0,110990.0,0.13316878]
[1760227204560,2.597435,111000.0,110990.0,0.14920366]
[1760227204784,2.597435,111000.0,110990.0,0.11514914]
[1760227204991,2.597435,111000.0,110990.0,0.06188914]
[1760227205203,2.597435,111000.0,110990.0,0.11514914]
[1760227205540,0.05888786,111010.0,111000.0,0.18018018]
[1760227205958,2.65632286,111010.0,111000.0,0.18018018]
[1760227206368,0.05888786,111010.0,111000.0,0.18018018]
[1760227206771,2.65637325,111010.0,111000.0,0.18018018]
[1760227206999,2.74509259,111010.0,111000.0,0.18018018]
[1760227207214,0.05893825,111010.0,111000.0,0.18018018]
[1760227207405,0.55893825,111010.0,111000.0,0.18018018]
[1760227207645,2.65637325,111010.0,111000.0,0.18018018]
[1760227207850,2.67572822,111010.0,111000.0,0.18018018]
[1760227208055,2.67672822,111010.0,111000.0,0.18018018]
[1760227208534,2.76544756,111010.0,111000.0,0.18018018]
[1760227208734,0.16801256,111010.0,111000.0,0.18018018]
[1760227208964,2.597435,110990.0,110980.0,0.18020374]
[1760227209171,3.097435,111000.0,110990.0,0.18019641]
[1760227209381,2.61678287,111000.0,110990.0,0.18019641]
[1760227210020,3.11678287,111000.0,110990.0,0.18019641]
[1760227210215,0.10806721,111000.0,110990.0,0.18019641]
[1760227210414,2.597435,111000.0,110990.0,0.18019641]
[1760227210736,2.61678287,111000.0,110990.0,0.18019641]
[1760227211191,2.597435,110990.0,110980.0,0.18921437]
[1760227211385,2.80336112,111000.0,110990.0,0.18019641]
[1760227211504,0.04454368,111000.0,110990.0,0.18019641]
[1760227211709,2.60683303,111000.0,110990.0,0.18019641]
[1760227211944,2.62618261,111000.0,110990.0,0.18019641]
[1760227212149,2.70753893,111000.0,110990.0,0.18019641]
[1760227212371,2.597435,110990.0,110980.0,0.18921437]
[1760227212555,2.61678458,110990.0,110980.0,0.18921437]
[1760227213741,2.61678458,110990.0,110980.0,0.18922328]
[1760227214163,2.61678458,110990.0,110980.0,0.18021265]
[1760227214164,0.01934958,110990.0,110980.0,0.18021265]
[1760227214406,3.15630654,110990.0,110980.0,0.18021265]
[1760227214529,0.07822112,110990.0,110980.0,0.1808015]
[1760227214738,2.65630654,110990.0,110980.0,0.1808015]
[1760227214969,2.88600443,110990.0,110980.0,0.00058885]
[1760227215170,2.88500443,110990.0,110980.0,0.00058885]
[1760227215376,2.91413431,110990.0,110980.0,0.00058885]
[1760227215777,0.34147281,110990.0,110980.0,0.00058885]
[1760227216174,2.94475802,110990.0,110980.0,0.00058885]
[1760227216372,0.18022889,110970.0,110960.0,0.0004]
[1760227216572,2.89653513,110970.0,110960.0,0.0004]
[1760227216777,2.99909753,110970.0,110960.0,0.0004]
[1760227217148,3.02623237,110970.0,110960.0,0.0004]
[1760227217596,3.02623237,110970.0,110960.0,0.18114879]
[1760227217597,2.70236238,110970.0,110960.0,0.18114879]
[1760227217789,2.66910971,110970.0,110960.0,0.18114879]
[1760227218099,2.67010971,110970.0,110960.0,0.18114879]
[1760227218231,2.66271465,110970.0,110960.0,0.18114879]
[1760227218446,0.06527965,110970.0,110960.0,0.18114879]
[1760227218651,2.67640731,110970.0,110960.0,0.18114879]
[1760227218941,2.69475689,110970.0,110960.0,0.18114879]
[1760227219084,2.69675689,110970.0,110960.0,0.18114879]
[1760227219287,2.66271465,110970.0,110960.0,0.18114879]
[1760227219884,3.16271465,110970.0,110960.0,0.18114879]
[1760227220473,2.66271465,110970.0,110960.0,0.18114879]
[1760227220689,3.16271465,110970.0,110960.0,0.18114879]
[1760227221088,0.24550854,110970.0,110960.0,0.18114879]
[1760227221292,2.82359396,110970.0,110960.0,0.18114879]
[1760227221492,2.66271465,110970.0,110960.0,0.18114879]
[1760227222038,2.66271465,110970.0,110960.0,0.18232675]
[1760227222201,2.84294354,110970.0,110960.0,0.18232675]
[1760227223100,2.84294354,110970.0,110960.0,0.00208162]
[1760227223302,2.95745681,110970.0,110960.0,0.00208162]
[1760227224136,2.98760871,110970.0,110960.0,0.00208162]
[1760227224333,3.01749744,110970.0,110960.0,0.00208162]
[1760227224534,0.54474402,110970.0,110960.0,0.00208162]
[1760227224768,3.14217902,110970.0,110960.0,0.00208162]
[1760227224966,3.06731605,110970.0,110960.0,0.00208162]
[1760227225166,3.16731604,110970.0,110960.0,0.00208162]
[1760227225370,3.14454254,110970.0,110960.0,0.00208162]
[1760227225769,3.16931604,110970.0,110960.0,0.00208162]
[1760227225993,3.06931605,110970.0,110960.0,0.00208162]
[1760227226207,2.77768013,110960.0,110950.0,0.0004]
[1760227226366,0.34569467,110960.0,110950.0,0.00090091]
[1760227226719,2.92378009,110960.0,110950.0,0.00090091]
[1760227226847,2.97026932,110960.0,110950.0,0.00090091]
[1760227227411,0.36644636,110960.0,110950.0,0.00090091]
[1760227227651,0.34709678,110960.0,110950.0,0.00090091]
[1760227227776,2.94453178,110960.0,110950.0,0.00090091]
[1760227227979,2.96388136,110960.0,110950.0,0.00090091]
[1760227228201,3.01323892,110960.0,110950.0,0.00090091]
[1760227228446,0.42051759,110960.0,110950.0,0.00090091]
[1760227228672,2.99860301,110960.0,110950.0,0.00090091]
[1760227228882,3.02633023,110960.0,110950.0,0.00090091]
[1760227230078,2.81195433,110960.0,110950.0,0.00090091]
[1760227230271,2.99219946,110960.0,110950.0,0.00090091]
[1760227230921,3.01697296,110960.0,110950.0,0.00090091]
[1760227231847,3.01697296,110960.0,110930.0,0.0004]
[1760227231848,2.80786452,110940.0,110930.0,0.0004]
[1760227232061,2.98999954,110940.0,110930.0,0.0004]
[1760227232269,3.01477304,110940.0,110930.0,0.00157844]
[1760227232662,3.04191672,110940.0,110930.0,0.00157844]
[1760227232878,0.44448172,110940.0,110930.0,0.00157844]
[1760227233080,0.44448172,110940.0,110920.0,8e-05]
[1760227233081,2.8282963,110930.0,110920.0,8e-05]
[1760227233201,2.89656687,110930.0,110920.0,8e-05]
[1760227233623,0.29913187,110930.0,110920.0,0.00066933]
[1760227233822,0.27978229,110930.0,110920.0,0.00066933]
[1760227234030,2.87721729,110930.0,110920.0,0.00066933]
[1760227234227,2.9647255,110930.0,110920.0,0.00066933]
[1760227234432,2.77776139,110910.0,110900.0,0.0004]
[1760227234658,0.10551457,110910.0,110900.0,0.0004]
[1760227234860,2.61423023,110910.0,110900.0,0.0004]
[1760227235060,2.61423023,110910.0,110900.0,0.18074265]
[1760227235332,2.61423023,110910.0,110900.0,0.0004]
[1760227235525,0.19712162,110910.0,110900.0,0.0004]
[1760227235770,2.66018082,110910.0,110900.0,0.0004]
[1760227235990,2.61423023,110910.0,110900.0,0.0004]
[1760227236157,2.61523023,110910.0,110900.0,0.0004]
[1760227236356,2.61523023,110910.0,110900.0,0.18074265]
[1760227236580,2.63684349,110910.0,110900.0,0.18074265]
[1760227238139,3.13684349,110910.0,110900.0,0.18074265]
[1760227238339,2.6561158,110910.0,110900.0,0.18074265]
[1760227239949,2.6561158,110910.0,110900.0,0.18192157]
[1760227240151,0.5586808,110910.0,110900.0,0.18192157]
[1760227240388,2.6561158,110910.0,110900.0,0.21887157]
[1760227240676,2.6561158,110910.0,110900.0,0.24558157]
[1760227240677,0.0586808,110910.0,110900.0,0.24558157]
[1760227240927,2.63684349,110910.0,110900.0,0.24558157]
[1760227241158,2.6561158,110910.0,110900.0,0.24558157]
[1760227241733,3.1561158,110910.0,110900.0,0.24558157]
[1760227242069,2.6561158,110910.0,110900.0,0.24558157]
[1760227242294,2.6561158,110910.0,110900.0,0.20863157]
[1760227242440,0.0586808,110910.0,110900.0,0.18192157]
[1760227242642,2.63684349,110910.0,110900.0,0.18192157]
[1760227242872,2.6561158,110910.0,110900.0,0.18192157]
[1760227243118,0.0586808,110910.0,110900.0,0.18192157]
[1760227243347,2.63684349,110910.0,110900.0,0.21887157]
[1760227243597,2.6561158,110910.0,110900.0,0.18192157]
[1760227243803,2.6561158,110910.0,110900.0,0.29960157]
[1760227244009,2.6561158,110910.0,110900.0,0.35026861]
[1760227244220,2.6561158,110910.0,110900.0,0.29960157]
[1760227244624,2.63684349,110910.0,110900.0,0.29960157]
[1760227245091,0.03940849,110910.0,110900.0,0.29960157]
[1760227245254,2.63684349,110910.0,110900.0,0.29960157]
[1760227245648,0.03940849,110910.0,110900.0,0.29960157]
[1760227245848,2.97684349,110910.0,110900.0,0.29960157]
[1760227246277,2.99616298,110910.0,110900.0,0.29960157]
[1760227247550,0.39872798,110910.0,110900.0,0.29960157]
[1760227247691,2.97684349,110910.0,110900.0,0.29960157]
[1760227247893,2.99616298,110910.0,110900.0,0.29960157]
[1760227248157,2.81074991,110910.0,110900.0,0.29960157]
[1760227248371,0.23264066,110910.0,110900.0,0.29960157]
[1760227248658,2.81074991,110910.0,110900.0,0.29960157]
[1760227248877,2.83007566,110910.0,110900.0,0.29960157]
[1760227249117,2.83007566,110910.0,110900.0,0.24558157]
[1760227249323,0.23264066,110910.0,110900.0,0.24558157]
[1760227249530,2.81074991,110910.0,110900.0,0.24558157]
[1760227249736,2.83007566,110910.0,110900.0,0.24558157]
[1760227249936,0.25741416,110910.0,110900.0,0.18192157]
[1760227250175,0.55249195,110930.0,110920.0,0.18031013]
[1760227250392,0.00148078,110930.0,110920.0,0.30594013]
[1760227250565,0.00022387,110930.0,110920.0,0.30594013]
[1760227250725,0.03842416,110940.0,110930.0,0.18029387]
[1760227250928,0.03842416,110940.0,110930.0,0.31615727]
[1760227251152,0.03842416,110940.0,110930.0,0.35454727]
[1760227251796,2.10738616,110940.0,110930.0,0.35454727]
[1760227251919,2.10738616,110940.0,110930.0,0.35354727]
[1760227252123,2.10738616,110940.0,110930.0,0.30492387]
[1760227252344,0.05924747,110940.0,110930.0,0.24573387]
[1760227252544,2.46820947,110940.0,110930.0,0.24573387]
[1760227253630,0.42402097,110940.0,110930.0,0.24573387]
[1760227253824,0.42402097,110940.0,110930.0,0.17829387]
[1760227253825,2.49298297,110940.0,110930.0,0.17829387]
[1760227254037,0.42402097,110940.0,110930.0,0.17829387]
[1760227254283,2.46820947,110940.0,110930.0,0.21668387]
[1760227255907,2.46820947,110940.0,110930.0,0.24573387]
[1760227256114,2.46820947,110940.0,110930.0,0.35525227]
[1760227256318,2.30773205,110940.0,110930.0,0.35525227]
[1760227256626,0.25900712,110940.0,110930.0,0.35525227]
[1760227256825,2.32796912,110940.0,110930.0,0.35525227]
[1760227257602,0.25900712,110940.0,110930.0,0.35525227]
[1760227257813,2.32796912,110940.0,110930.0,0.35525227]
[1760227258184,0.25900712,110940.0,110930.0,0.30392387]
[1760227258389,0.25900712,110940.0,110930.0,0.18029387]
[1760227258390,2.32796912,110940.0,110930.0,0.18029387]
[1760227259537,2.35376305,110940.0,110930.0,0.18029387]
[1760227259741,2.35376305,110940.0,110920.0,0.00096881]
[1760227259742,2.408962,110930.0,110920.0,0.00096881]
[1760227260047,0.38155027,110930.0,110920.0,0.00096881]
[1760227260373,0.38155027,110930.0,110920.0,0.18127894]
[1760227260490,0.47198102,110930.0,110920.0,0.00096881]
[1760227260692,2.4763062,110930.0,110920.0,0.00096881]
[1760227260971,2.48469343,110930.0,110920.0,0.00096881]
[1760227261177,2.6649873,110930.0,110920.0,0.00096881]
[1760227261393,2.68915374,110930.0,110920.0,0.00096881]
[1760227261590,0.62019174,110930.0,110920.0,0.00096881]
[1760227261870,2.77787308,110930.0,110920.0,0.00096881]
[1760227262074,2.50885987,110930.0,110920.0,0.00096881]
[1760227262478,2.52818546,110930.0,110920.0,0.00096881]
[1760227262683,2.52818546,110930.0,110920.0,0.23807995]
[1760227262684,2.44606436,110930.0,110920.0,0.23807995]
[1760227262921,2.44606436,110930.0,110920.0,0.22004894]
[1760227263140,2.44606436,110930.0,110920.0,0.35468629]
[1760227263141,0.37710236,110930.0,110920.0,0.35468629]
[1760227263342,2.42673877,110930.0,110920.0,0.30604894]
[1760227263552,2.42674514,110930.0,110920.0,0.30604894]
[1760227264217,2.42774514,110930.0,110920.0,0.24871894]
[1760227264637,2.42674514,110930.0,110920.0,0.24871894]
[1760227264844,2.42574514,110930.0,110920.0,0.24871894]
[1760227265071,0.37611717,110930.0,110920.0,0.24871894]
[1760227265296,0.35678314,110930.0,110920.0,0.30604894]
[1760227265937,2.42574514,110930.0,110920.0,0.30604894]
[1760227266392,2.408962,110930.0,110920.0,0.30604894]
[1760227267491,2.408962,110930.0,110920.0,0.12573881]
[1760227267698,2.408962,110930.0,110920.0,0.30604894]
[1760227268541,2.408962,110930.0,110920.0,0.00196881]
[1760227268714,2.42575834,110930.0,110920.0,0.00196881]
[1760227269102,2.44510722,110930.0,110920.0,0.00196881]
[1760227270149,2.62540109,110930.0,110920.0,0.00196881]
[1760227270340,2.65116399,110930.0,110920.0,0.00196881]
[1760227270541,2.80464789,110930.0,110920.0,0.00196881]
[1760227270743,2.80464789,110930.0,110920.0,0.00096881]
[1760227270961,0.73568589,110930.0,110920.0,0.00096881]
[1760227271162,2.80464789,110930.0,110920.0,0.00096881]
[1760227271339,2.80465561,110930.0,110920.0,0.00096881]
[1760227271551,2.78148917,110930.0,110920.0,0.00096881]
[1760227271753,2.78248917,110930.0,110920.0,0.00096881]
[1760227272332,2.77408848,110930.0,110920.0,0.00096881]
[1760227272532,2.77308848,110930.0,110920.0,0.00096881]
[1760227272769,0.78382208,110930.0,110920.0,0.00096881]
[1760227272993,2.82058665,110930.0,110920.0,0.00096881]
[1760227273209,2.81958665,110930.0,110920.0,0.00096881]
[1760227273374,2.58928839,110910.0,110900.0,0.0004]
[1760227273570,2.62544133,110910.0,110900.0,0.0004]
[1760227273775,2.62544133,110910.0,110900.0,0.00157892]
[1760227275085,2.44511494,110910.0,110900.0,0.00157892]
[1760227275407,0.55647933,110910.0,110900.0,0.00157892]
[1760227275611,2.62544133,110910.0,110900.0,0.00157892]
[1760227276585,2.44511494,110910.0,110900.0,0.00157892]
[1760227277539,2.44511494,110910.0,110900.0,0.24936157]
[1760227277699,2.44511494,110910.0,110900.0,0.30093213]
[1760227277878,2.408962,110910.0,110900.0,0.35826213]
[1760227278470,2.408962,110910.0,110900.0,0.30669157]
[1760227279920,2.408962,110910.0,110900.0,0.00157892]
[1760227282143,2.446882,110910.0,110900.0,0.00157892]
[1760227282348,0.37792,110910.0,110900.0,0.00157892]
[1760227282549,2.446882,110910.0,110900.0,0.00157892]
[1760227282764,2.53560134,110910.0,110900.0,0.00157892]
[1760227283357,2.446882,110910.0,110900.0,0.00157892]
[1760227283685,0.37792,110910.0,110900.0,0.00157892]
[1760227283876,2.446882,110910.0,110900.0,0.00157892]
[1760227285309,0.39725495,110910.0,110900.0,0.00157892]
[1760227285484,2.69540036,110910.0,110900.0,0.00157892]
[1760227285691,2.80345465,110910.0,110900.0,0.00157892]
[1760227286575,0.73549265,110910.0,110900.0,0.00157892]
[1760227286776,2.80445494,110910.0,110900.0,0.00157892]
[1760227287658,2.61947281,110890.0,110880.0,0.0004]
[1760227287869,0.34,110860.0,110840.0,0.26148562]
[1760227288079,2.408962,110850.0,110840.0,0.32892562]
[1760227288295,0.34,110850.0,110840.0,0.36835898]
[1760227288485,2.408962,110850.0,110840.0,0.36835898]
[1760227289019,2.408962,110850.0,110840.0,0.36886314]
[1760227289972,2.408962,110850.0,110840.0,0.36986314]
[1760227290147,2.408962,110850.0,110840.0,0.36886314]
[1760227290629,2.408962,110850.0,110840.0,0.36986314]
[1760227291123,0.09578684,110890.0,110840.0,0.36986314]
[1760227291124,2.068962,110880.0,110870.0,0.18037528]
[1760227291268,2.068962,110880.0,110870.0,0.31189242]
[1760227291470,0.07162362,110890.0,110880.0,0.18037518]
[1760227291675,2.49734452,110890.0,110880.0,0.20904518]
[1760227291884,0.3567589,110890.0,110880.0,0.24575518]
[1760227292324,2.4257209,110890.0,110880.0,0.11962]
[1760227292533,2.4257209,110890.0,110880.0,0.08392167]
[1760227292939,2.4257209,110890.0,110880.0,0.06588416]
[1760227293145,2.4267209,110890.0,110880.0,0.0670634]
[1760227293966,0.3577589,110890.0,110880.0,0.0670634]
[1760227294171,2.4267209,110890.0,110880.0,0.0670634]
[1760227294392,2.44603114,110890.0,110880.0,0.0670634]
[1760227295250,2.44503114,110890.0,110880.0,0.0670634]
[1760227295621,0.37606914,110890.0,110880.0,0.0670634]
[1760227295818,2.4257209,110890.0,110880.0,0.0670634]
[1760227296028,2.44503114,110890.0,110880.0,0.0670634]
[1760227298403,2.10503114,110890.0,110880.0,0.35275234]
[1760227298637,2.0857209,110890.0,110880.0,0.28047483]
[1760227298840,2.408962,110900.0,110890.0,0.18035891]
[1760227299045,2.44510474,110900.0,110890.0,0.29892891]
[1760227299641,0.37614274,110900.0,110890.0,0.29892891]
[1760227299806,2.42575809,110900.0,110890.0,0.29892891]
[1760227300007,2.42575809,110900.0,110890.0,0.33136678]
[1760227300008,2.44510474,110900.0,110890.0,0.33136678]
[1760227300177,2.42575809,110900.0,110890.0,0.33136678]
[1760227300382,2.44511769,110900.0,110890.0,0.29892891]
[1760227301013,2.44511769,110900.0,110890.0,0.29992891]
[1760227301589,0.55649834,110900.0,110890.0,0.001]
[1760227301791,2.46928091,110900.0,110890.0,0.001]
[1760227301995,2.55800025,110900.0,110890.0,0.001]
[1760227302591,0.48903825,110900.0,110890.0,0.001]
[1760227302788,2.55800025,110900.0,110890.0,0.001]
[1760227302994,0.34,110890.0,110880.0,0.02921416]
[1760227303235,0.35679609,110890.0,110880.0,0.06494416]
[1760227303437,2.42575809,110890.0,110880.0,0.06494416]
[1760227303780,2.44511769,110890.0,110880.0,0.06494416]
[1760227304541,2.76369449,110890.0,110880.0,0.00050416]
[1760227304743,2.79782406,110890.0,110880.0,0.00050416]
[1760227304950,2.79782406,110890.0,110880.0,0.0016834]
[1760227305522,0.72886206,110890.0,110880.0,0.0016834]
[1760227305751,2.79882406,110890.0,110880.0,0.0016834]
[1760227305973,2.68476939,110890.0,110880.0,0.0016834]
[1760227306433,2.71010472,110890.0,110880.0,0.0016834]
[1760227307048,0.61580739,110890.0,110880.0,0.0016834]
[1760227307291,2.68476939,110890.0,110880.0,0.0016834]
[1760227307546,0.61580739,110890.0,110880.0,0.0016834]
[1760227307756,2.68476939,110890.0,110880.0,0.0016834]
[1760227308455,0.70452673,110890.0,110880.0,0.0016834]
[1760227308658,2.068962,110860.0,110840.0,0.0004]
[1760227308883,2.068962,110860.0,110840.0,0.03613]
[1760227308884,2.408962,110850.0,110840.0,0.03613]
[1760227309012,2.44511769,110850.0,110840.0,0.06484]
[1760227309434,0.37615569,110850.0,110840.0,0.06484]
[1760227309661,2.42575809,110850.0,110840.0,0.06484]
[1760227309857,2.44511769,110850.0,110840.0,0.06719954]
[1760227310601,2.47045302,110850.0,110840.0,0.00275954]
[1760227310745,0.40149102,110850.0,110840.0,0.00275954]
[1760227310946,0.38213142,110850.0,110840.0,0.06719954]
[1760227311156,2.45109342,110850.0,110840.0,0.06719954]
[1760227311465,2.44511769,110850.0,110840.0,0.06719954]
[1760227311689,2.44511769,110850.0,110840.0,0.12452954]
[1760227313860,2.44511769,110850.0,110840.0,0.32301383]
[1760227314058,2.42575809,110850.0,110840.0,0.30496981]
[1760227314642,2.26515624,110850.0,110840.0,0.30496981]
[1760227315364,2.26515624,110850.0,110840.0,0.30596981]
[1760227317634,0.19619424,110850.0,110840.0,0.30596981]
[1760227317849,2.26515624,110850.0,110840.0,0.30596981]
[1760227318344,0.19619424,110850.0,110840.0,0.30596981]
[1760227318592,2.26515624,110850.0,110840.0,0.30596981]
[1760227319211,0.19619424,110850.0,110840.0,0.30596981]
[1760227319407,2.26515624,110850.0,110840.0,0.30596981]
[1760227319617,2.26515624,110850.0,110840.0,0.3575233]
[1760227320525,2.26515624,110850.0,110840.0,0.30596981]
[1760227323579,0.19619424,110850.0,110840.0,0.30596981]
[1760227323779,2.26515624,110850.0,110840.0,0.30596981]
[1760227324996,0.19619424,110850.0,110840.0,0.30596981]
[1760227325214,2.26515624,110850.0,110840.0,0.30596981]
[1760227325533,0.19619424,110850.0,110840.0,0.3575233]
[1760227325928,2.26515624,110850.0,110840.0,0.3575233]
[1760227326727,0.19619424,110850.0,110840.0,0.3575233]
[1760227326939,2.26515624,110850.0,110840.0,0.30596981]
[1760227327513,0.19619424,110850.0,110840.0,0.30596981]
[1760227327720,2.26515624,110850.0,110840.0,0.30596981]
[1760227328320,2.26515624,110850.0,110840.0,0.06819954]
[1760227328321,0.19619424,110850.0,110840.0,0.06819954]
[1760227328482,0.22152957,110850.0,110840.0,0.06819954]
[1760227328684,2.29049157,110850.0,110840.0,0.00375954]
[1760227329518,2.29049157,110850.0,110840.0,0.00275954]
[1760227329987,2.30982405,110850.0,110840.0,0.00275954]
[1760227330187,0.25764256,110850.0,110840.0,0.00275954]
[1760227330328,2.30727208,110850.0,110840.0,0.00275954]
[1760227330540,2.32660456,110850.0,110840.0,0.00275954]
[1760227330928,2.50702855,110850.0,110840.0,0.00275954]
[1760227331130,2.32660456,110850.0,110840.0,0.00275954]
[1760227331336,2.6066867,110850.0,110840.0,0.00275954]
[1760227331540,2.12991076,110850.0,110840.0,0.00275954]
[1760227331768,2.31033475,110850.0,110840.0,0.00275954]
[1760227331961,2.39905409,110850.0,110840.0,0.00275954]
[1760227332163,2.31033475,110850.0,110840.0,0.00275954]
[1760227332720,2.33450758,110850.0,110840.0,0.00275954]
[1760227333006,0.27394744,110850.0,110840.0,0.00275954]
[1760227333234,2.3312599,110850.0,110840.0,0.00275954]
[1760227333438,2.70351648,110850.0,110840.0,0.00275954]
[1760227333662,2.79223582,110850.0,110840.0,0.00275954]
[1760227334242,2.76803686,110850.0,110840.0,0.00275954]
[1760227334541,0.69907486,110850.0,110840.0,0.00275954]
[1760227334779,2.76803686,110850.0,110840.0,0.00275954]
[1760227335086,2.759635,110850.0,110840.0,0.00275954]
[1760227335753,0.52044027,110840.0,110830.0,0.0004]
[1760227335967,2.66157395,110840.0,110830.0,0.0004]
[1760227336196,2.6938044,110840.0,110830.0,0.0004]
[1760227336416,2.6938044,110840.0,110810.0,0.22801128]
[1760227336417,2.408962,110820.0,110810.0,0.22801128]
[1760227336639,2.408962,110820.0,110810.0,0.4085004]
[1760227336872,2.408962,110820.0,110810.0,0.4441304]
[1760227337114,2.408962,110820.0,110810.0,0.5275604]
[1760227337334,0.02418947,110830.0,110820.0,0.18047283]
[1760227337335,2.068962,110830.0,110820.0,0.18047283]
[1760227337614,0.03223045,110850.0,110840.0,0.18044027]
[1760227337615,0.52418947,110850.0,110840.0,0.18044027]
[1760227337826,2.068962,110840.0,110830.0,0.26387282]
[1760227337955,0.00050353,110850.0,110840.0,0.18044027]
[1760227338177,0.00050353,110850.0,110840.0,0.29950027]
[1760227338178,2.56946553,110850.0,110840.0,0.29950027]
[1760227338398,0.00050353,110850.0,110840.0,0.35012958]
[1760227338709,2.06946553,110850.0,110840.0,0.24242027]
[1760227338952,2.408962,110840.0,110830.0,0.26387282]
[1760227339148,2.068962,110840.0,110830.0,0.29950282]
[1760227339747,2.408962,110840.0,110830.0,0.29950282]
[1760227341419,2.408962,110840.0,110830.0,0.30009287]
[1760227342536,2.408962,110840.0,110830.0,0.33024477]
[1760227343887,2.408962,110840.0,110830.0,0.33124477]
[1760227346530,2.44587975,110840.0,110830.0,0.33124477]
[1760227351193,2.44587975,110840.0,110830.0,0.12065005]
[1760227351612,2.44587975,110840.0,110830.0,0.06357005]
[1760227351819,0.46563709,110840.0,110830.0,0.00159005]
[1760227352021,2.44587975,110840.0,110830.0,0.00159005]
[1760227352223,2.47595506,110840.0,110830.0,0.00059005]
[1760227352400,2.49531625,110840.0,110830.0,0.00059005]
[1760227352635,0.63286968,110840.0,110830.0,0.00059005]
[1760227352894,2.70183168,110840.0,110830.0,0.00059005]
[1760227353315,2.79055102,110840.0,110830.0,0.00059005]
[1760227353520,2.83154252,110840.0,110830.0,0.00159005]
[1760227353940,2.53630775,110840.0,110830.0,0.00059005]
[1760227354144,2.46524094,110840.0,110830.0,0.00059005]
[1760227354463,2.53630577,110840.0,110830.0,0.00059005]
[1760227354883,2.50723046,110840.0,110830.0,0.00059005]
[1760227355090,2.46624094,110840.0,110830.0,0.00059005]
[1760227355333,2.50722583,110840.0,110830.0,0.00059005]
[1760227355642,2.59594517,110840.0,110830.0,0.00059005]
[1760227355817,2.50722583,110840.0,110830.0,0.00059005]
[1760227356837,0.43826383,110840.0,110830.0,0.00059005]
[1760227357038,2.48786464,110840.0,110830.0,0.00059005]
[1760227357243,2.50722583,110840.0,110830.0,0.00059005]
[1760227357400,2.59594517,110840.0,110830.0,0.00059005]
[1760227357979,2.50722583,110840.0,110830.0,0.06173005]
[1760227358137,2.46624094,110840.0,110830.0,0.06173005]
[1760227358345,2.46624094,110840.0,110830.0,0.00059005]
[1760227358543,0.39727894,110840.0,110830.0,0.00059005]
[1760227358745,2.44687975,110840.0,110830.0,0.00059005]
[1760227358948,2.46524094,110840.0,110830.0,0.00059005]
[1760227359599,2.55396028,110840.0,110830.0,0.00059005]
[1760227360157,0.48499828,110840.0,110830.0,0.00059005]
[1760227360384,2.46524094,110840.0,110830.0,0.00059005]
[1760227361185,0.39627894,110840.0,110830.0,0.00059005]
[1760227361367,2.44587975,110840.0,110830.0,0.00059005]
[1760227361550,2.46524094,110840.0,110830.0,0.00059005]
[1760227361747,2.12524094,110840.0,110830.0,0.2978866]
[1760227361946,0.05641992,110870.0,110850.0,0.18042399]
[1760227362146,0.659755,110870.0,110860.0,0.31528849]
[1760227362411,2.068962,110880.0,110860.0,0.11684]
[1760227362626,2.068962,110880.0,110860.0,0.29724682]
[1760227362853,2.068962,110890.0,110860.0,0.3062672]
[1760227363063,2.068962,110890.0,110870.0,0.27128437]
[1760227363210,2.068962,110890.0,110880.0,0.01803751]
[1760227363409,0.02418947,110900.0,110880.0,0.25955269]
[1760227363752,0.34,110890.0,110880.0,0.24151518]
[1760227363971,0.03677939,110900.0,110880.0,0.33142657]
[1760227364184,2.068962,110890.0,110880.0,0.33142657]
[1760227364670,2.068962,110890.0,110880.0,0.24151518]
[1760227364876,2.408962,110890.0,110880.0,0.06114]
[1760227365036,2.408962,110890.0,110880.0,0.24151518]
[1760227365938,2.408962,110890.0,110880.0,0.06114]
[1760227366161,2.408962,110890.0,110880.0,0.24151518]
[1760227366316,2.408962,110890.0,110880.0,0.001]
[1760227366521,2.43903731,110890.0,110880.0,0.001]
[1760227366918,2.43903731,110890.0,110880.0,0.30448518]
[1760227366919,0.34,110890.0,110880.0,0.30448518]
[1760227367121,2.408962,110890.0,110880.0,0.30448518]
[1760227367520,0.34,110890.0,110880.0,0.30348518]
[1760227367720,2.408962,110890.0,110880.0,0.1175986]
[1760227367942,2.408962,110880.0,110870.0,0.20880126]
[1760227368145,2.408962,110880.0,110870.0,0.24676126]
[1760227368611,0.34,110880.0,110870.0,0.06637]
[1760227368804,2.198226,110870.0,110860.0,0.20658772]
[1760227369011,2.198226,110870.0,110860.0,0.30128772]
[1760227370424,2.198226,110870.0,110860.0,0.35399411]
[1760227370620,2.198226,110870.0,110860.0,0.30228772]
[1760227372365,2.198226,110870.0,110860.0,0.06514]
[1760227373111,0.34,110870.0,110860.0,0.001]
[1760227373312,2.43903731,110870.0,110860.0,0.001]
[1760227374210,2.408962,110860.0,110850.0,0.21577615]
[1760227374537,2.408962,110860.0,110850.0,0.25373615]
[1760227374931,0.34,110860.0,110850.0,0.25373615]
[1760227375137,2.408962,110860.0,110850.0,0.25373615]
[1760227375426,2.43903731,110860.0,110850.0,0.24471496]
[1760227375598,2.43903731,110860.0,110850.0,0.30145496]
[1760227376216,2.43903731,110860.0,110850.0,0.12103097]
[1760227376415,2.43903731,110860.0,110850.0,0.12203097]
[1760227376974,2.43903731,110860.0,110850.0,0.30245496]
[1760227377633,0.37007531,110860.0,110850.0,0.30245496]
[1760227377811,2.43903731,110860.0,110850.0,0.30245496]
[1760227378231,2.43903731,110860.0,110850.0,0.35759587]
[1760227378442,2.43903731,110860.0,110850.0,0.30245496]
[1760227378644,2.43903731,110860.0,110850.0,0.12203097]
[1760227379020,2.43903731,110860.0,110850.0,0.06529097]
[1760227379431,2.43903731,110860.0,110850.0,0.12203097]
[1760227379636,2.408962,110860.0,110850.0,0.33563929]
[1760227380219,2.408962,110860.0,110850.0,0.12203097]
[1760227380884,2.408962,110860.0,110850.0,0.12103097]
[1760227381867,2.408962,110860.0,110850.0,0.30145496]
[1760227382068,2.408962,110860.0,110850.0,0.12103097]
[1760227383088,0.34,110860.0,110850.0,0.12103097]
[1760227383296,2.408962,110860.0,110850.0,0.12103097]
[1760227383924,2.40955184,110860.0,110850.0,0.12103097]
[1760227384567,0.34058984,110860.0,110850.0,0.12103097]
[1760227384777,2.40955184,110860.0,110850.0,0.12103097]
[1760227385237,0.34058984,110860.0,110850.0,0.12103097]
[1760227385446,2.40955184,110860.0,110850.0,0.12103097]
[1760227386302,2.40955184,110860.0,110850.0,0.12203097]
[1760227386851,2.40955184,110860.0,110850.0,0.30245496]